[Event "Reykjavik Open 2025"]
[Site "Reykjavik, Iceland"]
[Date "2025.04.15"]
[Round "9.26"]
[White "Zierk, Steven"]
[Black "Gislason, Gudmundur"]
[Result "1-0"]
[WhiteElo "2501"]
[WhiteTitle "GM"]
[WhiteFideId "2034255"]
[BlackElo "2216"]
[BlackTitle "FM"]
[BlackFideId "2300559"]
[TimeControl "90+30 +30 after 40 moves"]
[Variant "Standard"]
[ECO "B06"]
[Opening "Modern Defense: Standard Line"]
[StudyName "Round 9"]
1. e4 { [%clk 1:30:57] } 1... g6 { [%clk 1:30:54] } 2. d4 { [%clk 1:31:21] } 2... Bg7 { [%clk 1:31:17] } 3. Nc3 { [%clk 1:31:44] } 3... a6 { [%clk 1:31:39] } 4. f4 { [%clk 1:31:08] } 4... d6 { [%clk 1:31:48] } 5. Nf3 { [%clk 1:31:14] } 5... e6 { [%clk 1:29:51] } 6. Bd3 { [%clk 1:30:14] } 6... Nc6 { [%clk 1:27:32] } 7. e5 { [%clk 1:24:00] } 7... Nge7 { [%clk 1:24:06] } 8. O-O { [%clk 1:19:39] } 8... O-O { [%clk 1:21:44] } 9. Ne4 { [%clk 1:14:23] } 9... Nb4 { [%clk 1:20:41] } 10. Be2 { [%clk 1:13:56] } 10... Nf5 { [%clk 1:17:08] } 11. g4 { [%clk 1:11:01] } 11... Ne7 { [%clk 1:02:58] } 12. Nf6+ { [%clk 0:59:32] } 12... Bxf6 { [%clk 1:00:05] } 13. exf6 { [%clk 1:00:00] } 13... Ned5 { [%clk 0:59:48] } 14. g5 { [%clk 0:58:19] } 14... c5 { [%clk 0:59:17] } 15. dxc5 { [%clk 0:53:36] } 15... Qc7 { [%clk 0:57:25] } 16. cxd6 { [%clk 0:51:32] } 16... Qxc2 { [%clk 0:57:45] } 17. Qe1 { [%clk 0:47:40] } 17... Qc5+ { [%clk 0:52:00] } 18. Kh1 { [%clk 0:47:32] } 18... h5 { [%clk 0:52:08] } 19. Ne5 { [%clk 0:42:38] } 19... Qxd6 { [%clk 0:51:51] } 20. Qh4 { [%clk 0:39:05] } 20... Bd7 { [%clk 0:50:48] } 21. Bxh5 { [%clk 0:35:15] } 21... gxh5 { [%clk 0:51:08] } 22. Qxh5 { [%clk 0:35:04] } 22... Bc6 { [%clk 0:51:05] } 23. Kg1 { [%clk 0:34:45] } 23... Nxf4 { [%clk 0:36:43] } 24. Rxf4 { [%clk 0:26:53] } 24... Nd3 { [%clk 0:36:45] } 25. Nxd3 { [%clk 0:25:59] } 1-0

[Event "Reykjavik Open 2025"]
[Site "Reykjavik, Iceland"]
[Date "2025.04.15"]
[Round "9.28"]
[White "Kjartansson, Gudmundur"]
[Black "Balje, Jan"]
[Result "1/2-1/2"]
[WhiteElo "2450"]
[WhiteTitle "GM"]
[WhiteFideId "2301318"]
[BlackElo "2125"]
[BlackFideId "1004085"]
[TimeControl "90+30 +30 after 40 moves"]
[Variant "Standard"]
[ECO "B10"]
[Opening "Caro-Kann Defense: Endgame Variation"]
[StudyName "Round 9"]
1. e4 { [%clk 1:30:57] } 1... c6 { [%clk 1:30:20] } 2. Nf3 { [%clk 1:31:21] } 2... d5 { [%clk 1:30:42] } 3. d3 { [%clk 1:31:47] } 3... dxe4 { [%clk 1:24:37] } 4. dxe4 { [%clk 1:32:13] } 4... Qxd1+ { [%clk 1:25:02] } 5. Kxd1 { [%clk 1:32:38] } 5... f6 { [%clk 1:21:01] } 6. Be3 { [%clk 1:31:50] } 6... e5 { [%clk 1:21:19] } 7. Bc4 { [%clk 1:29:39] } 7... Nd7 { [%clk 1:21:09] } 8. a4 { [%clk 1:29:07] } 8... a5 { [%clk 1:17:48] } 9. c3 { [%clk 1:28:24] } 9... Bc5 { [%clk 1:17:47] } 10. Ke2 { [%clk 1:27:17] } 10... Bxe3 { [%clk 1:16:22] } 11. Kxe3 { [%clk 1:27:39] } 11... Nb6 { [%clk 1:16:19] } 12. Bb3 { [%clk 1:25:44] } 12... Ke7 { [%clk 1:16:24] } 13. Nbd2 { [%clk 1:25:42] } 13... Be6 { [%clk 1:16:14] } 14. Bxe6 { [%clk 1:23:14] } 14... Kxe6 { [%clk 1:16:38] } 15. Ne1 { [%clk 1:23:31] } 15... Nh6 { [%clk 1:13:37] } 16. Nd3 { [%clk 1:22:20] } 16... Nd7 { [%clk 1:13:30] } 17. b4 { [%clk 1:20:30] } 17... axb4 { [%clk 1:09:01] } 18. cxb4 { [%clk 1:20:55] } 18... Nf7 { [%clk 1:09:10] } 19. Nc4 { [%clk 1:16:05] } 19... Nd6 { [%clk 1:05:42] } 20. Nxd6 { [%clk 1:15:26] } 20... Kxd6 { [%clk 1:06:06] } 21. Rhd1 { [%clk 1:15:05] } 21... Kc7 { [%clk 1:04:23] } 22. a5 { [%clk 1:14:46] } 22... g5 { [%clk 0:57:24] } 23. b5 { [%clk 1:13:06] } 23... Rhd8 { [%clk 0:43:07] } 24. b6+ { [%clk 0:51:42] } 24... Kd6 { [%clk 0:38:46] } 25. Nb4+ { [%clk 0:49:26] } 25... Kc5 { [%clk 0:38:14] } 26. Nd5 { [%clk 0:45:55] } 26... cxd5 { [%clk 0:33:46] } 27. Rxd5+ { [%clk 0:46:15] } 27... Kb4 { [%clk 0:34:03] } 28. Rb1+ { [%clk 0:45:02] } 28... Ka4 { [%clk 0:32:13] } 29. Rbd1 { [%clk 0:44:39] } 29... h5 { [%clk 0:28:33] } 30. h4 { [%clk 0:21:56] } 30... gxh4 { [%clk 0:26:58] } 31. Rxd7 { [%clk 0:22:06] } 31... Rxd7 { [%clk 0:25:20] } 32. Rxd7 { [%clk 0:22:31] } 32... Kxa5 { [%clk 0:24:14] } 33. Rxb7 { [%clk 0:22:37] } 33... Ra6 { [%clk 0:18:17] } 34. Rh7 { [%clk 0:07:13] } 34... Kxb6 { [%clk 0:18:25] } 35. Rxh5 { [%clk 0:07:37] } 35... Ra3+ { [%clk 0:17:52] } 36. Ke2 { [%clk 0:08:00] } 36... Kc5 { [%clk 0:17:40] } 37. Rh6 { [%clk 0:03:10] } 37... Kd4 { [%clk 0:17:05] } 38. f3 { [%clk 0:03:25] } 38... Ra2+ { [%clk 0:10:54] } 39. Kf1 { [%clk 0:03:50] } 39... Ke3 { [%clk 0:11:06] } 40. Kg1 { [%clk 0:04:14] } 40... Ra6 { [%clk 0:06:23] } 41. Rxh4 { [%clk 0:01:15] } 41... Ra1+ { [%clk 0:06:22] } 42. Kh2 { [%clk 0:01:37] } 42... Kf2 { [%clk 0:06:38] } 43. Rh6 { [%clk 0:29:45] } 43... Ra8 { [%clk 0:35:37] } 44. Kh3 { [%clk 0:23:36] } 44... Rg8 { [%clk 0:34:28] } 45. g4 { [%clk 0:23:18] } 45... Kxf3 { [%clk 0:33:56] } 46. Rxf6+ { [%clk 0:23:43] } 46... Kxe4 { [%clk 0:34:14] } 47. Kg3 { [%clk 0:22:56] } 47... Ke3 { [%clk 0:33:35] } 48. Rf3+ { [%clk 0:23:02] } 48... Ke2 { [%clk 0:33:26] } 49. Ra3 { [%clk 0:22:35] } 49... Rf8 { [%clk 0:31:10] } 50. Ra2+ { [%clk 0:20:41] } 50... Kd3 { [%clk 0:30:25] } 51. Ra3+ { [%clk 0:21:06] } 51... Ke2 { [%clk 0:30:48] } 52. Ra2+ { [%clk 0:21:33] } 52... Kd3 { [%clk 0:31:14] } 53. Ra3+ { [%clk 0:22:01] } 1/2-1/2

[Event "Reykjavik Open 2025"]
[Site "Reykjavik, Iceland"]
[Date "2025.04.15"]
[Round "9.29"]
[White "Larkin, Vladyslav"]
[Black "Bourgois, Bastien"]
[Result "1-0"]
[WhiteElo "2449"]
[WhiteTitle "IM"]
[WhiteFideId "14152894"]
[BlackElo "2112"]
[BlackFideId "681482"]
[TimeControl "90+30 +30 after 40 moves"]
[Variant "Standard"]
[ECO "A28"]
[Opening "English Opening: King's English Variation, Four Knights Variation, Quiet Line"]
[StudyName "Round 9"]
1. c4 { [%clk 1:30:56] } 1... e5 { [%clk 1:30:36] } 2. Nc3 { [%clk 1:31:14] } 2... Nf6 { [%clk 1:30:46] } 3. Nf3 { [%clk 1:31:32] } 3... Nc6 { [%clk 1:30:38] } 4. e3 { [%clk 1:31:44] } 4... Bb4 { [%clk 1:29:18] } 5. Qc2 { [%clk 1:32:02] } 5... O-O { [%clk 1:27:52] } 6. Nd5 { [%clk 1:32:10] } 6... Bc5 { [%clk 1:23:04] } 7. Ng5 { [%clk 1:25:59] } 7... g6 { [%clk 1:20:25] } 8. Nxf6+ { [%clk 1:26:24] } 8... Qxf6 { [%clk 1:20:49] } 9. Ne4 { [%clk 1:26:51] } 9... Qe7 { [%clk 1:20:58] } 10. Nxc5 { [%clk 1:27:16] } 10... Qxc5 { [%clk 1:21:15] } 11. a3 { [%clk 1:27:00] } 11... a5 { [%clk 1:20:20] } 12. Qa4 { [%clk 1:26:03] } 12... Ra6 { [%clk 1:17:29] } 13. Be2 { [%clk 1:11:41] } 13... d6 { [%clk 1:13:41] } 14. d3 { [%clk 1:03:07] } 14... Be6 { [%clk 1:07:14] } 15. Bd2 { [%clk 1:00:55] } 15... Raa8 { [%clk 1:04:05] } 16. Bc3 { [%clk 0:54:52] } 16... d5 { [%clk 1:00:43] } 17. cxd5 { [%clk 0:55:06] } 17... b5 { [%clk 0:59:34] } 18. Qh4 { [%clk 0:54:42] } 18... Bxd5 { [%clk 0:59:49] } 19. Rc1 { [%clk 0:23:59] } 19... b4 { [%clk 0:58:11] } 20. Bd2 { [%clk 0:21:55] } 20... Qd6 { [%clk 0:58:11] } 21. O-O { [%clk 0:21:07] } 21... f6 { [%clk 0:55:58] } 22. Ra1 { [%clk 0:16:41] } 22... Ne7 { [%clk 0:32:14] } 23. axb4 { [%clk 0:14:51] } 23... Nf5 { [%clk 0:32:08] } 24. Qg4 { [%clk 0:13:25] } 24... Be6 { [%clk 0:30:18] } 25. Qe4 { [%clk 0:13:51] } 25... Bd5 { [%clk 0:30:34] } 26. Qg4 { [%clk 0:14:18] } 26... Be6 { [%clk 0:30:59] } 27. Qf3 { [%clk 0:14:45] } 27... Bd5 { [%clk 0:30:37] } 28. Qh3 { [%clk 0:06:21] } 28... axb4 { [%clk 0:27:31] } 29. Rfd1 { [%clk 0:00:34] } 29... Be6 { [%clk 0:23:17] } 30. Qf3 { [%clk 0:01:01] } 30... c6 { [%clk 0:15:04] } 31. Qe4 { [%clk 0:01:00] } 31... Rab8 { [%clk 0:14:42] } 32. Bf1 { [%clk 0:00:47] } 32... Bd5 { [%clk 0:08:16] } 33. Qg4 { [%clk 0:01:13] } 33... Be6 { [%clk 0:09:14] } 34. Qe2 { [%clk 0:01:25] } 34... Ra8 { [%clk 0:09:13] } 35. Be1 { [%clk 0:01:32] } 35... c5 { [%clk 0:07:34] } 36. f3 { [%clk 0:01:54] } 36... Ra6 { [%clk 0:06:45] } 37. Bf2 { [%clk 0:01:42] } 37... Bb3 { [%clk 0:03:14] } 38. Rdc1 { [%clk 0:01:32] } 38... Ng7 { [%clk 0:03:06] } 39. Rxa6 { [%clk 0:01:51] } 39... Qxa6 { [%clk 0:03:27] } 40. Rxc5 { [%clk 0:02:07] } 40... Ne6 { [%clk 0:02:49] } 41. Rc1 { [%clk 0:02:27] } 41... Rd8 { [%clk 0:02:31] } 42. Qe1 { [%clk 0:26:41] } 42... Qb6 { [%clk 0:31:41] } 43. h4 { [%clk 0:26:46] } 43... Qa5 { [%clk 0:28:13] } 44. Ra1 { [%clk 0:25:53] } 44... Qb6 { [%clk 0:28:22] } 45. d4 { [%clk 0:20:34] } 45... exd4 { [%clk 0:27:49] } 46. Ra6 { [%clk 0:20:32] } 46... Qb7 { [%clk 0:26:14] } 47. exd4 { [%clk 0:20:49] } 47... Qd5 { [%clk 0:25:03] } 48. Qxb4 { [%clk 0:20:45] } 48... Nxd4 { [%clk 0:19:38] } 49. Rxf6 { [%clk 0:17:28] } 49... Qe5 { [%clk 0:19:10] } 50. Bxd4 { [%clk 0:15:40] } 50... Qxd4+ { [%clk 0:19:29] } 51. Qxd4 { [%clk 0:16:07] } 51... Rxd4 { [%clk 0:19:51] } 52. Rb6 { [%clk 0:15:32] } 52... Bd5 { [%clk 0:20:01] } 53. Rd6 { [%clk 0:15:32] } 53... Kf8 { [%clk 0:20:20] } 54. Rd7 { [%clk 0:15:43] } 54... Ke8 { [%clk 0:18:06] } 55. Bb5 { [%clk 0:16:01] } 55... Kf8 { [%clk 0:18:03] } 56. Kf2 { [%clk 0:16:05] } 56... h6 { [%clk 0:18:09] } 57. Ke3 { [%clk 0:16:17] } 57... Rd1 { [%clk 0:18:24] } 58. Be2 { [%clk 0:16:41] } 1-0

[Event "Reykjavik Open 2025"]
[Site "Reykjavik, Iceland"]
[Date "2025.04.15"]
[Round "9.30"]
[White "Nayak Rajesh"]
[Black "Cramling Bellon, Anna"]
[Result "1-0"]
[WhiteElo "2277"]
[WhiteTitle "FM"]
[WhiteFideId "35017152"]
[BlackElo "2046"]
[BlackTitle "WFM"]
[BlackFideId "32009232"]
[TimeControl "90+30 +30 after 40 moves"]
[Variant "Standard"]
[ECO "B40"]
[Opening "Sicilian Defense: Four Knights Variation"]
[StudyName "Round 9"]
1. e4 { [%clk 1:30:30] } 1... c5 { [%clk 1:30:30] } 2. Nf3 { [%clk 1:30:30] } 2... e6 { [%clk 1:30:30] } 3. d4 { [%clk 1:30:30] } 3... cxd4 { [%clk 1:30:30] } 4. Nxd4 { [%clk 1:30:30] } 4... Nf6 { [%clk 1:30:30] } 5. Nc3 { [%clk 1:30:30] } 5... Nc6 { [%clk 1:30:30] } 6. a3 { [%clk 1:30:30] } 6... d5 { [%clk 1:30:30] } 7. Bb5 { [%clk 1:30:30] } 7... Bd7 { [%clk 1:30:30] } 8. exd5 { [%clk 1:29:09] } 8... exd5 { [%clk 1:24:36] } 9. O-O { [%clk 1:26:34] } 9... Be7 { [%clk 1:24:44] } 10. Be2 { [%clk 1:19:02] } 10... O-O { [%clk 1:19:21] } 11. Bf3 { [%clk 1:15:15] } 11... Be6 { [%clk 1:10:20] } 12. Re1 { [%clk 1:12:15] } 12... Qd7 { [%clk 1:09:45] } 13. Bg5 { [%clk 1:08:19] } 13... Rad8 { [%clk 0:56:58] } 14. Qd3 { [%clk 0:58:41] } 14... h6 { [%clk 0:50:50] } 15. Bh4 { [%clk 0:52:28] } 15... Qc8 { [%clk 0:42:38] } 16. Rad1 { [%clk 0:47:11] } 16... Nxd4 { [%clk 0:40:32] } 17. Qxd4 { [%clk 0:46:26] } 17... Qc4 { [%clk 0:38:59] } 18. h3 { [%clk 0:32:07] } 18... b5 { [%clk 0:31:49] } 19. Be2 { [%clk 0:24:16] } 19... Qxd4 { [%clk 0:31:30] } 20. Rxd4 { [%clk 0:24:43] } 20... g5 { [%clk 0:24:09] } 21. Bg3 { [%clk 0:24:52] } 21... Bc5 { [%clk 0:24:30] } 22. Rdd1 { [%clk 0:25:02] } 22... a6 { [%clk 0:14:01] } 23. Bf3 { [%clk 0:19:19] } 23... b4 { [%clk 0:14:12] } 24. Na4 { [%clk 0:19:01] } 24... Be7 { [%clk 0:14:02] } 25. axb4 { [%clk 0:19:16] } 25... Bxb4 { [%clk 0:13:18] } 26. c3 { [%clk 0:19:35] } 26... Be7 { [%clk 0:11:03] } 27. Nb6 { [%clk 0:19:01] } 27... Bc5 { [%clk 0:11:08] } 28. Bc7 { [%clk 0:18:52] } 28... Rde8 { [%clk 0:04:34] } 29. b4 { [%clk 0:17:59] } 29... Re7 { [%clk 0:02:25] } 30. Be5 { [%clk 0:16:52] } 30... Bxb6 { [%clk 0:02:40] } 31. Bxf6 { [%clk 0:17:18] } 31... Rd7 { [%clk 0:02:42] } 32. Ra1 { [%clk 0:17:27] } 32... Ra7 { [%clk 0:00:34] } 33. Red1 { [%clk 0:17:45] } 33... Rc8 { [%clk 0:00:32] } 34. Bxd5 { [%clk 0:17:15] } 34... Bxd5 { [%clk 0:00:54] } 35. Rxd5 { [%clk 0:17:40] } 35... Rc6 { [%clk 0:01:12] } 36. Rf5 { [%clk 0:16:48] } 36... Kh7 { [%clk 0:01:12] } 37. g4 { [%clk 0:13:42] } 37... Kg6 { [%clk 0:01:39] } 38. Bd4 { [%clk 0:05:45] } 38... Bxd4 { [%clk 0:02:05] } 39. cxd4 { [%clk 0:06:11] } 39... Rd7 { [%clk 0:00:50] } 40. d5 { [%clk 0:04:06] } 40... Rb6 { [%clk 0:00:51] } 41. Rc1 { [%clk 0:03:47] } 41... Rdd6 { [%clk 0:28:59] } 42. Rc4 { [%clk 0:33:07] } 42... f6 { [%clk 0:25:57] } 43. Kg2 { [%clk 0:32:53] } 43... h5 { [%clk 0:19:33] } 44. Kf3 { [%clk 0:32:39] } 44... Rb5 { [%clk 0:18:25] } 45. Ke4 { [%clk 0:32:55] } 45... hxg4 { [%clk 0:18:47] } 46. hxg4 { [%clk 0:33:20] } 46... Rdb6 { [%clk 0:16:41] } 47. Kd3 { [%clk 0:31:44] } 47... Rxb4 { [%clk 0:15:35] } 48. Rc6 { [%clk 0:32:07] } 48... Rb3+ { [%clk 0:15:20] } 49. Kc4 { [%clk 0:32:28] } 49... R3b4+ { [%clk 0:11:43] } 50. Kc3 { [%clk 0:30:48] } 50... Rb3+ { [%clk 0:11:57] } 51. Kd4 { [%clk 0:31:12] } 51... R3b4+ { [%clk 0:11:15] } 52. Rc4 { [%clk 0:31:29] } 52... R4b5 { [%clk 0:08:39] } 53. f3 { [%clk 0:31:34] } 53... Rd6 { [%clk 0:06:45] } 54. Rc5 { [%clk 0:30:57] } 54... Rb4+ { [%clk 0:04:26] } 55. Kc3 { [%clk 0:31:20] } 55... Rb1 { [%clk 0:04:42] } 56. Kc2 { [%clk 0:31:01] } 56... Rb4 { [%clk 0:04:52] } 57. Kd3 { [%clk 0:31:06] } 57... Rb1 { [%clk 0:04:47] } 58. Rc3 { [%clk 0:30:15] } 58... Rb4 { [%clk 0:04:41] } 59. Rc6 { [%clk 0:30:20] } 59... Rb6 { [%clk 0:03:59] } 60. Rc4 { [%clk 0:28:19] } 60... Rb5 { [%clk 0:03:48] } 61. Kd4 { [%clk 0:28:41] } 61... Kf7 { [%clk 0:02:52] } 62. Rc7+ { [%clk 0:28:58] } 62... Kg6 { [%clk 0:02:36] } 63. Kc4 { [%clk 0:29:15] } 63... Rb1 { [%clk 0:01:25] } 64. Kc5 { [%clk 0:29:28] } 64... Rdb6 { [%clk 0:01:45] } 65. Rc6 { [%clk 0:28:56] } 65... R1b5+ { [%clk 0:01:34] } 66. Kd6 { [%clk 0:28:36] } 66... Kf7 { [%clk 0:01:42] } 67. f4 { [%clk 0:26:15] } 67... gxf4 { [%clk 0:01:37] } 68. Rxf4 { [%clk 0:26:32] } 68... Rb8 { [%clk 0:00:46] } 69. Rc7+ { [%clk 0:23:51] } 69... Kg6 { [%clk 0:01:09] } 70. Rf5 { [%clk 0:24:08] } 70... Rd8+ { [%clk 0:01:07] } 71. Ke6 { [%clk 0:24:19] } 71... Rb6+ { [%clk 0:00:35] } 72. Rc6 { [%clk 0:24:39] } 72... Rdb8 { [%clk 0:00:33] } 73. Rxb6 { [%clk 0:24:36] } 73... Rxb6+ { [%clk 0:01:02] } 74. d6 { [%clk 0:25:00] } 74... Rb1 { [%clk 0:00:37] } 75. d7 { [%clk 0:25:21] } 75... Re1+ { [%clk 0:01:03] } 76. Kd6 { [%clk 0:25:39] } 76... Rd1+ { [%clk 0:01:07] } 77. Rd5 { [%clk 0:25:58] } 1-0